{"text_format":"1","workbook":"xlsx","n_sheets":9,"sheets":["Instructions","Task Inputs","Exercise 1 Importance","Exercise 2 Enjoyment","Exercise 3 Competence","Summary","Time Input","Time v. Priority","Chart"],"not_rendered":{"charts":2,"images":1,"macros":1,"external_links":0,"defined_names":31,"comments":0,"pivot_tables":0},"unopened":[],"bounds":{"document_bytes":16777216,"sheet_cells":100000,"rows_first":2000,"rows_last":500,"rows_between":2000,"halvings":0,"cell_chars":16384,"cell_head_chars":4096},"cells_cut":0,"cells_raw":0,"read":"whole","date_system":"1900"}

{"sheet":"Instructions","index":0,"n_rows":32,"n_cols":1,"rows_kept":32,"cut":false,"hidden":false,"merged":[]}
[]
[]
["The 80/20 Exercise"]
[]
["Part A: Activity Rating"]
["1.       Start with the Task Inputs tab and list the top ten activities you spend the most time on."]
["2.       Move on to Exercise 1: Importance and rank your top ten activities based on their importance to the organization. The process to follow is explained in the note at the bottom of the page."]
["3.       Proceed to Exercise 2: Enjoyment and again rank your top ten activities, this time based on how much joy they bring you."]
["4.       Next complete Exercise 3: Competence and complete a final ranking of activities based on how good you feel you are at each."]
["5.       The Summary tab will automatically show you how your activities stack up each of three rankings and offers a “total” rating that should help you identify which activities occupy the nexus of importance, enjoyment, and competence for you."]
[]
["Before moving on to Part B, spend some time reflecting on these results. What do they tell you about the activities you engage in?"]
[]
["Part B: Time Tracking"]
["You may want to print out the Time Input page or ensure it is accessible on a tablet or other device you can carry with you all day."]
[]
["Use this sheet for 14 days (including weekends) to log the time you spend on each of the 10 activities you identified."]
["1.       Make notes in each box as you go about your day. If you spent an hour doing administrative work on Monday morning, simply enter 1 or make a tick in the corresponding box."]
["2.       At the end of the day or week, tally the time spent on each activity each day."]
["3.       At the end of your two week monitoring period, use the Time v. Priority report on the final tab to review your results."]
[]
["Once again, engage in some reflection. Are you spending most of your time on activities that are important and enjoyable and ones that play to your strengths? Or are you like most leaders, who commonly devote as much as 80% of their time to activities that they don’t like, don’t excel at, and don’t feel are adding much value to the organization?"]
[]
["It’s okay if you’re not pleased with what you see. Most leaders share this experience! The important thing is to strategize changes:"]
["·         Look at the activities with the lowest total ranking—these are the ones that you don’t enjoy, don’t have great skill in, and don’t believe are driving much value."]
["·         Ask yourself how you can eliminate or at least reduce the time you spend on these tasks. Can you delegate any of them or hire someone to handle some of them? Can you use technology to automate any of them? Can you simply stop doing certain tasks because they aren’t essential?"]
["o   Sadly, there will probably be some important activities you don’t enjoy but must continue to perform—but at least you can now do so knowing that you are adding value, which hopefully will lessen the pain!"]
["·         Now for the fun part! Think about how you want to spend the time you save."]
["o   You can use your extra hours to focus on activities you ranked the highest for importance, enjoyment, and competence. We bet you’ll get a rapid boost in professional fulfillment and impact."]
["o   But don’t forget, you can also give yourself some of that time back to live life! Family, friends, hobbies, creativity, exercise, time in nature, time for reflection, quiet time to “refill the well”—whatever your personal priorities, make sure to use this opportunity to fit them in, too."]
[]
["Without further ado, happy discovery!"]

{"sheet":"Task Inputs","index":1,"n_rows":29,"n_cols":2,"rows_kept":29,"cut":false,"hidden":false,"merged":[]}
["List of Top 10 Areas You Spend Your WORK Time Doing"]
[]
[1]
[2]
[3]
[4]
[5]
[6]
[7]
[8]
[9]
[10]
[]
[]
[null,"Examples (Feel free to come up with others. These are simply suggestions.)"]
[null,"Developing Team"]
[null,"Sales/Business Development"]
[null,"Fulfillment of Client Projects"]
[null,"Administrative"]
[null,"Reviewing Financials"]
[null,"Strategy Development"]
[null,"Legal/Compliance"]
[null,"Managing Team"]
[null,"Office Meetings Unrelated to Other Tasks"]
[null,"Marketing"]
[null,"Operations Execution"]
[null,"Community/Volunteer/Board Work"]
[null,"Board Communication/Presentation"]
[null,"Shareholder Communications"]

{"sheet":"Exercise 1 Importance","index":2,"n_rows":16,"n_cols":14,"rows_kept":16,"cut":false,"hidden":false,"merged":[[0,1,0,6],[17,4,17,6],[16,4,16,6],[15,4,15,6]]}
[null,"Prioritization Exercise #1: Importance to Business"]
[null,null,null,null,1,{"$f":"E2+1","v":2},{"$f":"F2+1","v":3},4,5,6,7,8,9,10]
[null,null,null,null,{"$f":"'Task Inputs'!$B$3","v":0},{"$f":"'Task Inputs'!$B$4","v":0},{"$f":"'Task Inputs'!$B$5","v":0},{"$f":"'Task Inputs'!$B$6","v":0},{"$f":"'Task Inputs'!$B$7","v":0},{"$f":"'Task Inputs'!$B$8","v":0},{"$f":"'Task Inputs'!$B$9","v":0},{"$f":"'Task Inputs'!$B$10","v":0},{"$f":"'Task Inputs'!$B$11","v":0},{"$f":"'Task Inputs'!$B$12","v":0}]
[null,1,null,{"$f":"TRANSPOSE(E3:N3)","v":0},"z",0,0,0,0,0,0,0,0,0]
[null,{"$f":"B4+1","v":2},null,0,{"$f":"IF(TRANSPOSE(F4:$N4)=1,0,IF(TRANSPOSE(F4:$N4)=0,1,\"\"))","v":1},"z",0,0,0,0,0,0,0,0]
[null,{"$f":"B5+1","v":3},null,0,1,{"$f":"IF(TRANSPOSE(G5:$N5)=1,0,IF(TRANSPOSE(G5:$N5)=0,1,\"\"))","v":1},"z",0,0,0,0,0,0,0]
[null,4,null,0,1,1,{"$f":"IF(TRANSPOSE(H6:$N6)=1,0,IF(TRANSPOSE(H6:$N6)=0,1,\"\"))","v":1},"z",0,0,0,0,0,0]
[null,5,null,0,1,1,1,{"$f":"IF(TRANSPOSE(I7:$N7)=1,0,IF(TRANSPOSE(I7:$N7)=0,1,\"\"))","v":1},"z",0,0,0,0,0]
[null,6,null,0,1,1,1,1,{"$f":"IF(TRANSPOSE(J8:$N8)=1,0,IF(TRANSPOSE(J8:$N8)=0,1,\"\"))","v":1},"z",0,0,0,0]
[null,7,null,0,1,1,1,1,1,{"$f":"IF(TRANSPOSE(K9:$N9)=1,0,IF(TRANSPOSE(K9:$N9)=0,1,\"\"))","v":1},"z",0,0,0]
[null,8,null,0,1,1,1,1,1,1,{"$f":"IF(TRANSPOSE(L10:$N10)=1,0,IF(TRANSPOSE(L10:$N10)=0,1,\"\"))","v":1},"z",0,0]
[null,9,null,0,1,1,1,1,1,1,1,{"$f":"IF(TRANSPOSE(M11:$N11)=1,0,IF(TRANSPOSE(M11:$N11)=0,1,\"\"))","v":1},"z",0]
[null,10,null,0,1,1,1,1,1,1,1,1,{"$f":"IF(TRANSPOSE(N12:$N12)=1,0,IF(TRANSPOSE(N12:$N12)=0,1,\"\"))","v":1},"z"]
[null,null,null,"TOTAL",{"$f":"SUM(E4:E13)","v":9},8,7,6,5,4,3,2,1,0]
[]
[null,null,null,null,"Instructions: If the activity across the top row is more important than the actvity along the first column, then enter \"1\", otherwise enter \"0\". You only need to complete the section in blue above the diagonal line, the section below (in gray) will auto-update. "]

{"sheet":"Exercise 2 Enjoyment","index":3,"n_rows":16,"n_cols":14,"rows_kept":16,"cut":false,"hidden":false,"merged":[[0,1,0,6],[15,4,15,6],[16,4,16,6],[17,4,17,6]]}
[null,"Prioritization Exercise #2: Personal Enjoyment"]
[null,null,null,null,1,{"$f":"E2+1","v":2},{"$f":"F2+1","v":3},4,5,6,7,8,9,10]
[null,null,null,null,{"$f":"'Task Inputs'!$B$3","v":0},{"$f":"'Task Inputs'!$B$4","v":0},{"$f":"'Task Inputs'!$B$5","v":0},{"$f":"'Task Inputs'!$B$6","v":0},{"$f":"'Task Inputs'!$B$7","v":0},{"$f":"'Task Inputs'!$B$8","v":0},{"$f":"'Task Inputs'!$B$9","v":0},{"$f":"'Task Inputs'!$B$10","v":0},{"$f":"'Task Inputs'!$B$11","v":0},{"$f":"'Task Inputs'!$B$12","v":0}]
[null,1,null,{"$f":"TRANSPOSE(E3:N3)","v":0},"z",0,0,0,0,0,0,0,0,0]
[null,{"$f":"B4+1","v":2},null,0,{"$f":"IF(TRANSPOSE(F4:$N4)=1,0,IF(TRANSPOSE(F4:$N4)=0,1,\"\"))","v":1},"z",0,0,0,0,0,0,0,0]
[null,{"$f":"B5+1","v":3},null,0,1,{"$f":"IF(TRANSPOSE(G5:$N5)=1,0,IF(TRANSPOSE(G5:$N5)=0,1,\"\"))","v":1},"z",0,0,0,0,0,0,0]
[null,4,null,0,1,1,{"$f":"IF(TRANSPOSE(H6:$N6)=1,0,IF(TRANSPOSE(H6:$N6)=0,1,\"\"))","v":1},"z",0,0,0,0,0,0]
[null,5,null,0,1,1,1,{"$f":"IF(TRANSPOSE(I7:$N7)=1,0,IF(TRANSPOSE(I7:$N7)=0,1,\"\"))","v":1},"z",0,0,0,0,0]
[null,6,null,0,1,1,1,1,{"$f":"IF(TRANSPOSE(J8:$N8)=1,0,IF(TRANSPOSE(J8:$N8)=0,1,\"\"))","v":1},"z",0,0,0,0]
[null,7,null,0,1,1,1,1,1,{"$f":"IF(TRANSPOSE(K9:$N9)=1,0,IF(TRANSPOSE(K9:$N9)=0,1,\"\"))","v":1},"z",0,0,0]
[null,8,null,0,1,1,1,1,1,1,{"$f":"IF(TRANSPOSE(L10:$N10)=1,0,IF(TRANSPOSE(L10:$N10)=0,1,\"\"))","v":1},"z",0,0]
[null,9,null,0,1,1,1,1,1,1,1,{"$f":"IF(TRANSPOSE(M11:$N11)=1,0,IF(TRANSPOSE(M11:$N11)=0,1,\"\"))","v":1},"z",0]
[null,10,null,0,1,1,1,1,1,1,1,1,{"$f":"IF(TRANSPOSE(N12:$N12)=1,0,IF(TRANSPOSE(N12:$N12)=0,1,\"\"))","v":1},"z"]
[null,null,null,"TOTAL",{"$f":"SUM(E4:E13)","v":9},8,7,6,5,4,3,2,1,0]
[]
[null,null,null,null,"Instructions: If the activity across the top row is more enjoyable to you than the activity along the first column, then enter \"1\", otherwise enter \"0\". You only need to complete the section in blue above the diagonal line, the section below (in gray) will auto-update. "]

{"sheet":"Exercise 3 Competence","index":4,"n_rows":16,"n_cols":14,"rows_kept":16,"cut":false,"hidden":false,"merged":[[0,1,0,6],[15,4,15,6],[16,4,16,6],[17,4,17,6]]}
[null,"Prioritization Exercise #3: Importance to Business"]
[null,null,null,null,1,{"$f":"E2+1","v":2},{"$f":"F2+1","v":3},4,5,6,7,8,9,10]
[null,null,null,null,{"$f":"'Task Inputs'!$B$3","v":0},{"$f":"'Task Inputs'!$B$4","v":0},{"$f":"'Task Inputs'!$B$5","v":0},{"$f":"'Task Inputs'!$B$6","v":0},{"$f":"'Task Inputs'!$B$7","v":0},{"$f":"'Task Inputs'!$B$8","v":0},{"$f":"'Task Inputs'!$B$9","v":0},{"$f":"'Task Inputs'!$B$10","v":0},{"$f":"'Task Inputs'!$B$11","v":0},{"$f":"'Task Inputs'!$B$12","v":0}]
[null,1,null,{"$f":"TRANSPOSE(E3:N3)","v":0},"z",0,0,0,0,0,0,0,0,0]
[null,{"$f":"B4+1","v":2},null,0,{"$f":"IF(TRANSPOSE(F4:$N4)=1,0,IF(TRANSPOSE(F4:$N4)=0,1,\"\"))","v":1},"z",0,0,0,0,0,0,0,0]
[null,{"$f":"B5+1","v":3},null,0,1,{"$f":"IF(TRANSPOSE(G5:$N5)=1,0,IF(TRANSPOSE(G5:$N5)=0,1,\"\"))","v":1},"z",0,0,0,0,0,0,0]
[null,4,null,0,1,1,{"$f":"IF(TRANSPOSE(H6:$N6)=1,0,IF(TRANSPOSE(H6:$N6)=0,1,\"\"))","v":1},"z",0,0,0,0,0,0]
[null,5,null,0,1,1,1,{"$f":"IF(TRANSPOSE(I7:$N7)=1,0,IF(TRANSPOSE(I7:$N7)=0,1,\"\"))","v":1},"z",0,0,0,0,0]
[null,6,null,0,1,1,1,1,{"$f":"IF(TRANSPOSE(J8:$N8)=1,0,IF(TRANSPOSE(J8:$N8)=0,1,\"\"))","v":1},"z",0,0,0,0]
[null,7,null,0,1,1,1,1,1,{"$f":"IF(TRANSPOSE(K9:$N9)=1,0,IF(TRANSPOSE(K9:$N9)=0,1,\"\"))","v":1},"z",0,0,0]
[null,8,null,0,1,1,1,1,1,1,{"$f":"IF(TRANSPOSE(L10:$N10)=1,0,IF(TRANSPOSE(L10:$N10)=0,1,\"\"))","v":1},"z",0,0]
[null,9,null,0,1,1,1,1,1,1,1,{"$f":"IF(TRANSPOSE(M11:$N11)=1,0,IF(TRANSPOSE(M11:$N11)=0,1,\"\"))","v":1},"z",0]
[null,10,null,0,1,1,1,1,1,1,1,1,{"$f":"IF(TRANSPOSE(N12:$N12)=1,0,IF(TRANSPOSE(N12:$N12)=0,1,\"\"))","v":1},"z"]
[null,null,null,"TOTAL",{"$f":"SUM(E4:E13)","v":9},8,7,6,5,4,3,2,1,0]
[]
[null,null,null,null,"Instructions: If the activity across the top row is something you feel you perform better at than the activity along the first column, then enter \"1\", otherwise enter \"0\". You only need to complete the section in blue above the diagonal line, the section below (in gray) will auto-update. "]

{"sheet":"Summary","index":5,"n_rows":12,"n_cols":5,"rows_kept":12,"cut":false,"hidden":false,"merged":[]}
[]
["Task","Importance","Enjoyment","Competence","Total"]
[{"$f":"'Task Inputs'!B3","v":0},{"$f":"'Exercise 1 Importance'!E14","v":9},{"$f":"'Exercise 2 Enjoyment'!E14","v":9},{"$f":"'Exercise 3 Competence'!E14","v":9},{"$f":"SUM(B3:D3)","v":27}]
[{"$f":"'Task Inputs'!B4","v":0},{"$f":"'Exercise 1 Importance'!F14","v":8},{"$f":"'Exercise 2 Enjoyment'!F14","v":8},{"$f":"'Exercise 3 Competence'!F14","v":8},{"$f":"SUM(B4:D4)","v":24}]
[{"$f":"'Task Inputs'!B5","v":0},{"$f":"'Exercise 1 Importance'!G14","v":7},{"$f":"'Exercise 2 Enjoyment'!G14","v":7},{"$f":"'Exercise 3 Competence'!G14","v":7},21]
[{"$f":"'Task Inputs'!B6","v":0},{"$f":"'Exercise 1 Importance'!H14","v":6},{"$f":"'Exercise 2 Enjoyment'!H14","v":6},{"$f":"'Exercise 3 Competence'!H14","v":6},18]
[{"$f":"'Task Inputs'!B7","v":0},{"$f":"'Exercise 1 Importance'!I14","v":5},{"$f":"'Exercise 2 Enjoyment'!I14","v":5},{"$f":"'Exercise 3 Competence'!I14","v":5},15]
[{"$f":"'Task Inputs'!B8","v":0},{"$f":"'Exercise 1 Importance'!J14","v":4},{"$f":"'Exercise 2 Enjoyment'!J14","v":4},{"$f":"'Exercise 3 Competence'!J14","v":4},12]
[{"$f":"'Task Inputs'!B9","v":0},{"$f":"'Exercise 1 Importance'!K14","v":3},{"$f":"'Exercise 2 Enjoyment'!K14","v":3},{"$f":"'Exercise 3 Competence'!K14","v":3},9]
[{"$f":"'Task Inputs'!B10","v":0},{"$f":"'Exercise 1 Importance'!L14","v":2},{"$f":"'Exercise 2 Enjoyment'!L14","v":2},{"$f":"'Exercise 3 Competence'!L14","v":2},6]
[{"$f":"'Task Inputs'!B11","v":0},{"$f":"'Exercise 1 Importance'!M14","v":1},{"$f":"'Exercise 2 Enjoyment'!M14","v":1},{"$f":"'Exercise 3 Competence'!M14","v":1},3]
[{"$f":"'Task Inputs'!B12","v":0},{"$f":"'Exercise 1 Importance'!N14","v":0},{"$f":"'Exercise 2 Enjoyment'!N14","v":0},{"$f":"'Exercise 3 Competence'!N14","v":0},0]

{"sheet":"Time Input","index":6,"n_rows":15,"n_cols":16,"rows_kept":15,"cut":false,"hidden":false,"merged":[[0,0,0,2]]}
["Instructions:  Please print this page and log the amount of time devoted each day to each task type. (You can quickly note start and stop times, use hashmarks to quickly indicate hours spent, whatever works for you.). Then use this spreadsheet to enter the total time per task for each day and Excel will do the math. We recommend logging in 15-minute increments but choose what unit of meausre works best for you."]
[]
[null,"Day","Day","Day","Day","Day","Day","Day","Day","Day","Day","Day","Day","Day","Day"]
[null,1,2,3,4,5,6,7,8,9,10,11,12,13,14]
[{"$f":"'Task Inputs'!B3","v":0},null,null,null,null,null,null,null,null,null,null,null,null,null,null,{"$f":"SUM(B5:O5)","v":0}]
[{"$f":"'Task Inputs'!B4","v":0},null,null,null,null,null,null,null,null,null,null,null,null,null,null,{"$f":"SUM(B6:O6)","v":0}]
[{"$f":"'Task Inputs'!B5","v":0},null,null,null,null,null,null,null,null,null,null,null,null,null,null,0]
[{"$f":"'Task Inputs'!B6","v":0},null,null,null,null,null,null,null,null,null,null,null,null,null,null,0]
[{"$f":"'Task Inputs'!B7","v":0},null,null,null,null,null,null,null,null,null,null,null,null,null,null,0]
[{"$f":"'Task Inputs'!B8","v":0},null,null,null,null,null,null,null,null,null,null,null,null,null,null,0]
[{"$f":"'Task Inputs'!B9","v":0},null,null,null,null,null,null,null,null,null,null,null,null,null,null,0]
[{"$f":"'Task Inputs'!B10","v":0},null,null,null,null,null,null,null,null,null,null,null,null,null,null,0]
[{"$f":"'Task Inputs'!B11","v":0},null,null,null,null,null,null,null,null,null,null,null,null,null,null,0]
[{"$f":"'Task Inputs'!B12","v":0},null,null,null,null,null,null,null,null,null,null,null,null,null,null,0]
["Totals",{"$f":"SUM(B5:B14)","v":0},{"$f":"SUM(C5:C14)","v":0},0,0,0,0,0,0,0,0,0,0,0,0]

{"sheet":"Time v. Priority","index":7,"n_rows":16,"n_cols":4,"rows_kept":16,"cut":false,"hidden":false,"merged":[]}
[]
["Task","Total Time Invested","% of Total Time Invested","Priority Score"]
[{"$f":"'Task Inputs'!B3","v":0},{"$f":"'Time Input'!P5","v":0},{"$f":"B3/$B$13","v":{"$error":"#DIV/0!"}},{"$f":"Summary!E3","v":27}]
[{"$f":"'Task Inputs'!B4","v":0},{"$f":"'Time Input'!P6","v":0},{"$f":"B4/$B$13","v":{"$error":"#DIV/0!"}},{"$f":"Summary!E4","v":24}]
[{"$f":"'Task Inputs'!B5","v":0},{"$f":"'Time Input'!P7","v":0},{"$error":"#DIV/0!"},{"$f":"Summary!E5","v":21}]
[{"$f":"'Task Inputs'!B6","v":0},{"$f":"'Time Input'!P8","v":0},{"$error":"#DIV/0!"},{"$f":"Summary!E6","v":18}]
[{"$f":"'Task Inputs'!B7","v":0},{"$f":"'Time Input'!P9","v":0},{"$error":"#DIV/0!"},{"$f":"Summary!E7","v":15}]
[{"$f":"'Task Inputs'!B8","v":0},{"$f":"'Time Input'!P10","v":0},{"$error":"#DIV/0!"},{"$f":"Summary!E8","v":12}]
[{"$f":"'Task Inputs'!B9","v":0},{"$f":"'Time Input'!P11","v":0},{"$error":"#DIV/0!"},{"$f":"Summary!E9","v":9}]
[{"$f":"'Task Inputs'!B10","v":0},{"$f":"'Time Input'!P12","v":0},{"$error":"#DIV/0!"},{"$f":"Summary!E10","v":6}]
[{"$f":"'Task Inputs'!B11","v":0},{"$f":"'Time Input'!P13","v":0},{"$error":"#DIV/0!"},{"$f":"Summary!E11","v":3}]
[{"$f":"'Task Inputs'!B12","v":0},{"$f":"'Time Input'!P14","v":0},{"$error":"#DIV/0!"},{"$f":"Summary!E12","v":0}]
[null,{"$f":"SUM(B3:B12)","v":0}]
[]
[]
["NOTE: The highest score = the highest prioirty task"]

{"sheet":"Chart","index":8,"n_rows":17,"n_cols":3,"rows_kept":17,"cut":false,"hidden":true,"merged":[]}
[]
[]
[null,"Value","Score"]
[null,{"$f":"'Exercise 1 Importance'!D4","v":0},{"$f":"'Exercise 1 Importance'!E14","v":9}]
[null,{"$f":"'Exercise 1 Importance'!D5","v":0},{"$f":"'Exercise 1 Importance'!F14","v":8}]
[null,{"$f":"'Exercise 1 Importance'!D6","v":0},{"$f":"'Exercise 1 Importance'!G14","v":7}]
[null,{"$f":"'Exercise 1 Importance'!D7","v":0},{"$f":"'Exercise 1 Importance'!H14","v":6}]
[null,{"$f":"'Exercise 1 Importance'!D8","v":0},{"$f":"'Exercise 1 Importance'!I14","v":5}]
[null,{"$f":"'Exercise 1 Importance'!D9","v":0},{"$f":"'Exercise 1 Importance'!J14","v":4}]
[null,{"$f":"'Exercise 1 Importance'!D10","v":0},{"$f":"'Exercise 1 Importance'!K14","v":3}]
[null,{"$f":"'Exercise 1 Importance'!D11","v":0},{"$f":"'Exercise 1 Importance'!L14","v":2}]
[null,{"$f":"'Exercise 1 Importance'!D12","v":0},{"$f":"'Exercise 1 Importance'!M14","v":1}]
[null,{"$f":"'Exercise 1 Importance'!D13","v":0},{"$f":"'Exercise 1 Importance'!N14","v":0}]
[null,{"$f":"'Exercise 1 Importance'!#REF!","v":{"$error":"#REF!"}},{"$f":"'Exercise 1 Importance'!#REF!","v":{"$error":"#REF!"}}]
[null,{"$f":"'Exercise 1 Importance'!#REF!","v":{"$error":"#REF!"}},{"$f":"'Exercise 1 Importance'!#REF!","v":{"$error":"#REF!"}}]
[null,{"$f":"'Exercise 1 Importance'!#REF!","v":{"$error":"#REF!"}},{"$f":"'Exercise 1 Importance'!#REF!","v":{"$error":"#REF!"}}]
[null,{"$f":"'Exercise 1 Importance'!#REF!","v":{"$error":"#REF!"}},{"$f":"'Exercise 1 Importance'!#REF!","v":{"$error":"#REF!"}}]